bitfinex-derivatives/quotes_SOLF0:USTF0_20250818
["timestamp","ask_amount","ask_price","bid_price","bid_amount"]
[1755488503843,5.4698,182.72,182.64,5.4719]
[1755488504046,5.4698,182.72,182.65,3.05]
[1755488504843,2.99,182.73,182.66,3.05]
[1755488505539,2.99,182.73,182.62,3.05]
[1755488505743,5.4715,182.66,182.62,3.05]
[1755488505949,5.4715,182.66,182.63,3.05]
[1755488506142,5.4715,182.66,182.58,3.05]
[1755488507046,5.4716,182.65,182.58,3.05]
[1755488507354,367.62,182.82,182.58,3.05]
[1755488507355,2.99,182.66,182.58,3.05]
[1755488508246,5.4717,182.65,182.58,5.4736]
[1755488508444,5.4717,182.65,182.59,3.05]
[1755488509451,5.4717,182.65,182.58,5.4736]
[1755488509452,8.4613,182.66,182.6,3.05]
[1755488509653,2.99,182.66,182.6,3.05]
[1755488509845,9.57977936,182.75,182.6,3.05]
[1755488510046,2.99,182.74,182.61,3.05]
[1755488510452,5.4713,182.67,182.61,3.05]
[1755488510647,2.99,182.69,182.61,3.05]
[1755488511250,2.99,182.68,182.61,3.05]
[1755488511550,2.99,182.68,182.58,3.05]
[1755488511752,5.4725,182.63,182.58,3.05]
[1755488512350,2.99,182.65,182.58,3.05]
[1755488514155,5.4724,182.63,182.58,3.05]
[1755488514353,2.99,182.65,182.58,3.05]
[1755488514949,5.4721,182.64,182.58,3.05]
[1755488516348,5.4722,182.63,182.58,3.05]
[1755488516555,8.4922,182.63,182.58,3.05]
[1755488516951,5.4712,182.67,182.58,3.05]
[1755488517150,3.02,182.68,182.58,3.05]
[1755488517354,3.02,182.68,182.61,5.4725]
[1755488517552,8.4909,182.68,182.62,2.95]
[1755488518051,8.4909,182.68,182.63,2.95]
[1755488519549,3.02,182.77,182.55,2.95]
[1755488519749,3.02,182.77,182.57,2.95]
[1755488520146,3.02,182.77,182.6,2.95]
[1755488520348,3.02,182.74,182.6,2.95]
[1755488521052,5.4724,182.63,182.6,2.95]
[1755488521261,8.4924,182.63,182.6,2.95]
[1755488521458,3.02,182.65,182.62,2.95]
[1755488521658,5.4719,182.64,182.62,2.95]
[1755488521957,8.4919,182.64,182.62,2.95]
[1755488523460,3.02,182.63,182.6,2.95]
[1755488523961,10.9391,182.72,182.54,5.4749]
[1755488524153,3.02,182.6,182.58,2.95]
[1755488524349,8.4934,182.6,182.58,2.95]
[1755488528357,8.4934,182.6,182.54,2.95]
[1755488528358,5.4734,182.59,182.54,2.95]
[1755488528558,3.02,182.7,182.54,2.95]
[1755488528860,26.00977936,182.71,182.55,2.95]
[1755488529059,3.02,182.57,182.55,2.95]
[1755488529357,3.02,182.57,182.48,160.83977936]
[1755488529358,9.57977936,182.67,182.5,2.95]
[1755488529556,393.78977936,182.7,182.5,2.95]
[1755488529758,3.02,182.65,182.5,2.95]
[1755488529961,3.02,182.65,182.53,2.95]
[1755488530565,5.4741,182.57,182.53,2.95]
[1755488530758,3.02,182.6,182.53,2.95]
[1755488531360,5.4742,182.57,182.53,2.95]
[1755488531957,3.02,182.6,182.53,2.95]
[1755488532262,3.02,182.69,182.53,2.95]
[1755488532462,3.02,182.67,182.53,2.95]
[1755488533254,5.4738,182.58,182.53,2.95]
[1755488533459,3.02,182.67,182.53,2.95]
[1755488533659,3.02,182.65,182.53,2.95]
[1755488533859,3.02,182.63,182.53,2.95]
[1755488535165,5.4749,182.54,182.53,2.95]
[1755488536968,3.02,182.54,182.48,2.95]
[1755488537971,5.4764,182.49,182.44,2.95]
[1755488538265,3.02,182.52,182.44,2.95]
[1755488538863,5.4776,182.45,182.44,2.95]
[1755488539169,3.02,182.47,182.45,2.95]
[1755488539372,5.4774,182.46,182.45,2.95]
[1755488539572,8.4974,182.46,182.45,2.95]
[1755488539770,3.02,182.46,182.4,154.09]
[1755488539971,3.02,182.46,182.41,2.95]
[1755488540363,5.4777,182.45,182.41,2.95]
[1755488540761,3.02,182.46,182.41,2.95]
[1755488540960,3.02,182.45,182.41,2.95]
[1755488541172,3.02,182.45,182.38,2.95]
[1755488541369,5.479,182.41,182.38,2.95]
[1755488541666,3.02,182.44,182.33,151.1]
[1755488541667,3.02,182.44,182.34,5.4808]
[1755488541868,9.57977936,182.54,182.4,2.95]
[1755488542074,7.92948239,182.53,182.4,2.95]
[1755488542272,3.01,182.51,182.4,2.95]
[1755488542466,3.7843308,182.5,182.4,2.95]
[1755488542775,3.01,182.48,182.4,2.95]
[1755488543174,5.4791,182.41,182.4,2.95]
[1755488543377,3.01,182.41,182.34,2.93]
[1755488543880,5.4797,182.39,182.34,2.93]
[1755488544375,5.4792,182.4,182.34,2.93]
[1755488544569,10.9509,182.53,182.34,3.47]
[1755488544777,3.77564751,182.52,182.38,2.93]
[1755488544974,3.01,182.52,182.4,5.4791]
[1755488545169,3.01,182.52,182.38,2.93]
[1755488545170,3.01,182.52,182.41,2.93]
[1755488545569,5.4768,182.48,182.41,5.4787]
[1755488545786,3.01,182.5,182.42,2.93]
[1755488545982,5.4764,182.49,182.42,8.4084]
[1755488546180,5.4764,182.49,182.43,2.93]
[1755488546579,5.4762,182.5,182.43,8.4082]
[1755488546772,5.4762,182.5,182.44,2.93]
[1755488549287,5.4765,182.49,182.44,2.93]
[1755488549583,8.4865,182.49,182.44,2.93]
[1755488549979,3.01,182.48,182.44,2.93]
[1755488550285,3.01,182.49,182.44,2.93]
[1755488550479,3.01,182.56,182.44,2.93]
[1755488551587,3.01,182.48,182.44,2.93]
[1755488552289,3.01,182.48,182.41,15.05827936]
[1755488552290,3.01,182.47,182.45,2.93]
[1755488552484,5.477,182.48,182.42,2.93]
[1755488552983,5.4771,182.47,182.42,2.93]
[1755488553179,3.01,182.49,182.42,2.93]
[1755488553787,5.477,182.47,182.42,2.93]
[1755488554185,8.487,182.47,182.42,2.93]
[1755488554392,367.92,182.57,182.37,62.0]
[1755488554582,3.01,182.55,182.42,2.93]
[1755488554783,3.86757156,182.54,182.42,2.93]
[1755488554982,8.4882,182.43,182.42,2.93]
[1755488556789,3.01,182.55,182.37,2.93]
[1755488556981,3.01,182.53,182.37,2.93]
[1755488557182,3.01,182.51,182.37,2.93]
[1755488557989,5.4778,182.45,182.4,2.93]
[1755488558787,8.4878,182.45,182.4,2.93]
[1755488561790,5.4778,182.45,182.4,2.93]
[1755488561992,5.4774,182.46,182.4,5.4791]
[1755488562188,3.01,182.47,182.37,2.93]
[1755488562696,3.01,182.48,182.33,2.93]
[1755488562896,3.86827531,182.47,182.33,2.93]
[1755488563085,3.01,182.38,182.33,2.93]
[1755488563584,8.4905,182.36,182.34,2.93]
[1755488564088,5.4806,182.35,182.34,2.93]
[1755488564288,8.4906,182.35,182.34,2.93]
[1755488564494,3.01,182.34,182.32,2.93]
[1755488564681,8.4904,182.36,182.3,2.93]
[1755488565486,8.4907,182.35,182.3,2.93]
[1755488565997,3.01,182.45,182.3,2.93]
[1755488566199,5.4813,182.33,182.29,150.84]
[1755488566497,3.01,182.32,182.25,2.93]
[1755488566690,8.4916,182.32,182.25,2.93]
[1755488566894,3.01,182.32,182.25,3.88462775]
[1755488567192,3.01,182.32,182.26,2.93]
[1755488567396,8.4925,182.29,182.27,2.93]
[1755488567594,3.01,182.28,182.24,2.93]
[1755488568101,3.01,182.27,182.24,2.93]
[1755488568396,27.3981,182.41,182.25,2.93]
[1755488568693,3.01,182.39,182.25,2.93]
[1755488568887,3.86382228,182.38,182.25,2.93]
[1755488569092,16.44,182.4,182.26,2.93]
[1755488569093,3.01,182.29,182.26,2.93]
[1755488569294,3.01,182.29,182.27,2.93]
[1755488569687,8.4919,182.31,182.23,2.93]
[1755488569997,3.01,182.31,182.26,5.4833]
[1755488570190,3.01,182.3,182.22,368.16]
[1755488570383,3.01,182.3,182.23,2.93]
[1755488570790,10.9581,182.41,182.25,2.93]
[1755488570985,10.9581,182.41,182.23,2.93]
[1755488570986,3.01,182.39,182.23,2.93]
[1755488571201,3.01,182.37,182.23,2.93]
[1755488571397,3.01,182.37,182.22,368.16]
[1755488571398,3.01,182.34,182.26,2.93]
[1755488572193,5.4812,182.34,182.28,5.4826]
[1755488572398,3.1,182.43,182.29,2.86]
[1755488572601,3.8606772,182.42,182.29,2.86]
[1755488572795,3.1,182.4,182.29,2.86]
[1755488573194,5.4804,182.36,182.3,5.4819]
[1755488573697,3.1,182.34,182.32,2.86]
[1755488574399,3.1,182.34,182.33,2.86]
[1755488574589,368.2,182.44,182.25,9.57977936]
[1755488574590,3.1,182.36,182.25,9.57977936]
[1755488574789,3.1,182.36,182.34,2.86]
[1755488575186,368.2,182.44,182.35,2.86]
[1755488575397,3.1,182.37,182.35,2.86]
[1755488575992,3.1,182.39,182.36,2.86]
[1755488576194,3.1,182.38,182.36,2.86]
[1755488576501,3.1,182.37,182.28,2.86]
[1755488577797,5.4806,182.36,182.3,5.4821]
[1755488577997,3.1,182.34,182.32,2.86]
[1755488579502,3.1,182.34,182.3,5.4821]
[1755488579702,3.1,182.34,182.33,2.86]
[1755488579891,5.4807,182.35,182.3,5.4821]
[1755488580097,3.1,182.33,182.32,2.86]
[1755488580596,3.1,182.35,182.33,2.86]
[1755488580797,3.1,182.43,182.33,2.86]
[1755488580998,5.4799,182.38,182.33,2.86]
[1755488581402,3.1,182.37,182.33,2.86]
[1755488581799,3.1,182.37,182.25,160.23977936]
[1755488581800,3.1,182.36,182.34,2.86]
[1755488582098,3.1,182.36,182.35,2.86]
[1755488582301,3.1,182.38,182.36,2.86]
[1755488582506,3.1,182.38,182.37,2.86]
[1755488583004,3.1,182.48,182.3,2.86]
[1755488583201,3.1,182.46,182.3,2.86]
[1755488583397,5.479,182.41,182.35,5.4804]
[1755488583698,5.479,182.41,182.36,2.86]
[1755488583905,8.579,182.41,182.36,2.86]
[1755488584302,3.1,182.4,182.36,2.86]
[1755488584897,5.93888508,182.5,182.37,2.86]
[1755488585102,3.1,182.44,182.37,2.86]
[1755488585902,5.4788,182.42,182.37,5.48]
[1755488586101,5.93888508,182.5,182.27,2.86]
[1755488586304,5.93888508,182.5,182.28,2.86]
[1755488586305,3.1,182.48,182.28,2.86]
[1755488586505,8.5791,182.41,182.36,2.86]
[1755488586702,3.1,182.4,182.36,2.86]
[1755488587095,5.93888508,182.5,182.27,9.57977936]
[1755488587299,3.1,182.48,182.28,2.86]
[1755488587500,3.1,182.46,182.28,2.86]
[1755488587694,3.1,182.46,182.25,150.66]
[1755488587695,3.1,182.44,182.31,2.86]
[1755488587905,3.1,182.42,182.31,2.86]
[1755488588108,5.4802,182.37,182.32,5.4815]
[1755488588301,3.1,182.36,182.34,2.86]
[1755488588697,3.1,182.46,182.31,2.86]
[1755488589000,3.1,182.44,182.31,2.86]
[1755488589193,3.1,182.42,182.31,8.3416]
[1755488589396,3.95152389,182.41,182.32,2.86]
[1755488589707,3.1,182.4,182.32,2.86]
[1755488590297,5.4803,182.37,182.32,8.3413]
[1755488590501,3.1,182.36,182.33,2.86]
[1755488590802,5.93888508,182.47,182.32,2.86]
[1755488591003,3.1,182.45,182.34,2.86]
[1755488591208,3.1,182.43,182.34,2.86]
[1755488591412,3.1,182.41,182.34,2.86]
[1755488591904,3.1,182.38,182.35,2.86]
[1755488592105,3.1,182.37,182.24,150.42]
[1755488592307,15.51866444,182.48,182.3,5.4819]
[1755488592308,5.4807,182.35,182.3,5.4819]
[1755488592505,3.1,182.34,182.3,5.4819]
[1755488592708,3.1,182.33,182.32,2.86]
[1755488593112,5.481,182.34,182.29,5.4824]
[1755488593305,5.4821,182.3,182.29,2.86]
[1755488593609,3.1,182.3,182.23,2.86]
[1755488594006,3.1,182.25,182.24,2.86]
[1755488594410,3.1,182.27,182.25,2.86]
[1755488594609,9.03888508,182.38,182.23,2.86]
[1755488594808,3.1,182.36,182.23,2.86]
[1755488595010,3.1,182.34,182.21,2.86]
[1755488595212,3.1,182.32,182.21,2.86]
[1755488595411,5.4836,182.26,182.21,8.3448]
[1755488595611,3.1,182.25,182.16,0.9549159]
[1755488595812,3.1,182.25,182.24,2.86]
[1755488596208,26.01977936,182.36,182.16,0.9549159]
[1755488596410,3.1,182.31,182.11,368.32]
[1755488596607,3.1,182.2,182.18,3.47379533]
[1755488597613,3.1,182.2,182.19,2.86]
[1755488598216,8.5851,182.2,182.19,2.86]
[1755488598410,8.5851,182.2,182.18,0.61379533]
[1755488598604,3.1,182.2,182.18,3.47379533]
[1755488599015,3.1,182.26,182.19,2.86]
[1755488599223,3.1,182.2,182.18,3.47379533]
[1755488599613,3.1,182.2,182.18,0.61379533]
[1755488599807,3.1,182.2,182.19,2.86]
[1755488600112,8.5846,182.22,182.2,2.86]
[1755488600314,3.1,182.21,182.2,2.86]
[1755488601109,5.4843,182.23,182.18,0.61379533]
[1755488601417,3.1,182.35,182.19,3.4]
[1755488601626,3.94764751,182.34,182.19,2.86]
[1755488601819,8.5821,182.31,182.25,2.86]
[1755488602021,3.1,182.31,182.25,2.86]
[1755488602214,3.1,182.31,182.27,5.483]
[1755488602618,3.1,182.31,182.3,3.02]
[1755488603125,3.1,182.31,182.22,3.02]
[1755488604516,2.88,182.27,182.22,3.02]
[1755488604718,2.88,182.27,182.2,3.02]
[1755488605418,2.88,182.27,182.2,8.5049]
[1755488605611,2.88,182.27,182.2,3.02]
[1755488606518,2.88,182.37,182.2,3.02]
[1755488606715,5.482,182.31,182.24,5.4837]
[1755488606920,2.88,182.3,182.25,3.02]
[1755488607119,5.482,182.31,182.26,3.02]
[1755488607311,2.88,182.28,182.26,3.02]
[1755488609138,8.3618,182.32,182.19,3.02]
[1755488609321,2.88,182.32,182.19,3.02]
[1755488609517,5.4821,182.31,182.19,3.02]
[1755488609716,2.88,182.3,182.19,3.02]
[1755488610127,5.4828,182.28,182.23,5.4842]
[1755488610323,2.88,182.27,182.24,3.02]
[1755488610525,2.88,182.27,182.23,5.4842]
[1755488610526,2.88,182.26,182.2,3.02]
[1755488610731,8.3634,182.26,182.2,3.02]
[1755488610927,5.93888508,182.36,182.2,3.02]
[1755488610928,8.81888508,182.35,182.2,3.02]
[1755488611229,5.4837,182.25,182.2,3.02]
[1755488611421,2.88,182.24,182.22,3.02]
[1755488612731,2.88,182.29,182.19,3.02]
[1755488613722,5.4825,182.29,182.24,5.484]
[1755488613928,2.88,182.28,182.25,3.02]
[1755488614226,2.88,182.27,182.24,5.484]
[1755488614627,5.93888508,182.37,182.25,5.4837]
[1755488614829,2.88,182.35,182.25,3.02]
[1755488615127,2.88,182.33,182.25,3.02]
[1755488615431,2.88,182.33,182.18,0.61379533]
[1755488615432,2.88,182.29,182.19,3.02]
[1755488615622,2.88,182.27,182.19,3.02]
[1755488616529,5.93888508,182.34,182.21,3.02]
[1755488616530,2.88,182.25,182.21,3.02]
[1755488616731,2.88,182.24,182.22,3.02]
[1755488616929,22.37888508,182.34,182.21,3.02]
[1755488617231,2.88,182.32,182.21,8.5048]
[1755488617429,2.88,182.3,182.21,3.02]
[1755488617625,4.08365695,182.29,182.21,3.02]
[1755488617821,4.08365695,182.28,182.21,3.02]
[1755488618029,2.88,182.27,182.21,3.02]
[1755488618331,2.88,182.27,182.22,5.4844]
[1755488618526,2.88,182.25,182.23,3.02]
[1755488618728,16.44,182.33,182.23,3.02]
[1755488618928,2.88,182.24,182.23,3.02]
[1755488619620,2.88,182.24,182.23,8.5043]
[1755488619823,5.4831,182.27,182.23,8.5043]
[1755488620024,2.88,182.25,182.23,3.02]
[1755488620223,2.88,182.25,182.24,3.02]
[1755488620424,2.88,182.27,182.19,3.02]
[1755488621529,2.88,182.34,182.19,3.02]
[1755488621731,4.08565675,182.33,182.19,3.02]
[1755488621931,12.44735675,182.32,182.19,3.02]
[1755488622125,8.3617,182.32,182.19,3.02]
[1755488622320,8.3617,182.32,182.18,0.61379533]
[1755488622321,2.88,182.32,182.22,3.02]
[1755488622526,2.88,182.32,182.26,3.02]
[1755488622725,2.88,182.4,182.26,3.02]
[1755488622935,2.88,182.4,182.35,5.4804]
[1755488623227,2.88,182.39,182.29,9.57977936]
[1755488623424,2.88,182.42,182.34,3.02]
[1755488623621,2.88,182.4,182.32,3.02]
[1755488623925,2.88,182.38,182.32,3.02]
[1755488624134,2.88,182.37,182.34,3.02]
[1755488624328,2.88,182.37,182.35,3.02]
[1755488624921,2.88,182.37,182.33,5.4811]
[1755488625125,149.9,182.43,182.36,3.02]
[1755488625327,2.88,182.39,182.34,3.02]
[1755488625524,5.48,182.38,182.35,3.02]
[1755488625733,2.88,182.37,182.35,3.02]
[1755488626034,5.48,182.38,182.37,3.02]
[1755488626228,2.88,182.38,182.37,3.02]
[1755488626435,2.88,182.42,182.37,3.02]
[1755488626634,2.88,182.4,182.38,3.02]
[1755488627030,2.88,182.4,182.36,5.4803]
[1755488627232,2.88,182.4,182.39,3.02]
[1755488627430,5.4783,182.43,182.39,3.02]
[1755488627637,2.88,182.47,182.39,3.02]
[1755488627938,2.88,182.45,182.35,3.02]
[1755488628130,2.88,182.38,182.35,8.5006]
[1755488628331,2.88,182.38,182.37,3.02]
[1755488628730,2.88,182.38,182.28,9.57977936]
[1755488628937,377.47156646,182.51,182.29,3.02]
[1755488628938,19.32,182.44,182.29,3.02]
[1755488629239,5.4804,182.36,182.3,5.4819]
[1755488629432,5.4804,182.36,182.24,378.09977936]
[1755488629738,2.88,182.38,182.25,3.02]
[1755488630939,2.88,182.37,182.32,3.02]
[1755488631141,2.88,182.37,182.25,3.02]
[1755488631732,2.88,182.36,182.24,378.09977936]
[1755488632130,2.88,182.36,182.34,3.02]
[1755488633435,2.88,182.36,182.35,2.95]
[1755488633638,2.88,182.39,182.35,2.95]
[1755488633836,2.88,182.46,182.29,2.95]
[1755488634042,2.88,182.46,182.28,9.57977936]
[1755488634043,2.88,182.46,182.36,9.57977936]
[1755488634240,2.88,182.49,182.37,2.95]
[1755488636132,2.88,182.49,182.45,5.4777]
[1755488636336,2.88,182.49,182.43,2.95]
[1755488636643,2.88,182.47,182.43,8.4282]
[1755488636839,2.88,182.47,182.37,2.95]
[1755488637738,2.88,182.47,182.45,5.4777]
[1755488637940,5.4759,182.51,182.36,9.57977936]
[1755488637941,2.88,182.5,182.44,2.95]
[1755488638331,2.88,182.5,182.46,5.4772]
[1755488638533,2.88,182.48,182.46,8.4272]
[1755488639444,2.88,182.56,182.47,2.95]
[1755488639738,4.07940199,182.55,182.47,2.95]
[1755488639931,2.88,182.56,182.53,2.95]
[1755488640135,2.88,182.6,182.44,9.57977936]
[1755488640433,2.88,182.58,182.51,2.95]
[1755488640641,2.88,182.57,182.53,2.95]
[1755488640843,2.88,182.6,182.53,2.95]
[1755488641139,2.88,182.58,182.53,2.95]
[1755488641338,2.88,182.57,182.53,2.95]
[1755488641538,2.88,182.57,182.52,5.4755]
[1755488641937,5.4742,182.57,182.52,2.95]
[1755488642135,6.94919176,182.56,182.42,9.57977936]
[1755488642340,2.88,182.55,182.48,2.95]
[1755488642741,2.88,182.55,182.5,8.4261]
[1755488643044,2.88,182.55,182.5,2.95]
[1755488643240,2.88,182.55,182.48,2.95]
[1755488643443,368.4,182.61,182.43,2.95]
[1755488643444,4.06532706,182.54,182.43,2.95]
[1755488643646,15.51866444,182.6,182.43,2.95]
[1755488643647,5.4767,182.49,182.43,2.95]
[1755488643845,2.88,182.47,182.43,2.95]
[1755488644043,5.4767,182.49,182.43,2.95]
[1755488644248,2.88,182.47,182.44,5.4779]
[1755488644544,2.88,182.57,182.4,2.95]
[1755488644736,4.04203712,182.56,182.39,368.28]
[1755488644940,2.88,182.55,182.47,2.95]
[1755488645136,2.88,182.54,182.47,2.95]
[1755488645336,2.88,182.55,182.41,2.95]
[1755488645948,149.32,182.58,182.47,2.95]
[1755488646142,2.88,182.56,182.47,2.95]
[1755488646342,2.88,182.56,182.51,5.4757]
[1755488646546,2.88,182.55,182.52,2.95]
[1755488647046,2.88,182.55,182.52,8.4255]
[1755488648539,2.88,182.55,182.52,5.4755]
[1755488648743,2.88,182.55,182.53,2.95]
[1755488649140,2.88,182.57,182.53,2.95]
[1755488649451,2.88,182.56,182.53,2.95]
[1755488649645,2.88,182.55,182.53,2.95]
[1755488649839,2.88,182.55,182.52,5.4755]
[1755488650045,2.88,182.55,182.54,2.95]
[1755488651853,2.88,182.57,182.54,2.95]
[1755488652446,2.88,182.57,182.55,2.95]
[1755488652853,2.88,182.57,182.56,2.95]
[1755488653352,2.88,182.62,182.56,2.95]
[1755488653660,2.88,182.6,182.56,2.95]
[1755488654555,2.88,182.59,182.56,2.95]
[1755488654754,5.4734,182.6,182.56,2.95]
[1755488654955,2.88,182.58,182.56,8.4244]
[1755488655150,2.88,182.58,182.48,9.57977936]
[1755488655351,2.88,182.58,182.57,2.95]
[1755488655650,294.46743906,182.68,182.57,5.4741]
[1755488655851,2.88,182.6,182.58,2.95]
[1755488656151,278.02743906,182.68,182.58,2.95]
[1755488656352,2.88,182.61,182.59,2.95]
[1755488656757,2.88,182.6,182.59,2.95]
[1755488657654,2.88,182.6,182.59,8.4235]
[1755488658255,2.88,182.6,182.59,2.95]
[1755488660164,2.88,182.6,182.49,2.95]
[1755488660658,2.88,182.59,182.49,2.95]
[1755488662355,3.15,182.58,182.55,5.4744]
[1755488662556,3.15,182.58,182.57,2.86]
[1755488665274,3.15,182.58,182.46,2.86]
[1755488665275,3.15,182.57,182.46,2.86]
[1755488665569,5.4754,182.53,182.47,5.477]
[1755488665768,8.6254,182.53,182.48,2.86]
[1755488667363,3.15,182.51,182.39,368.28]
[1755488667565,4.0435423,182.5,182.47,2.86]
[1755488667770,3.15,182.49,182.43,5.4781]
[1755488668073,3.15,182.55,182.45,2.86]
[1755488668275,3.15,182.53,182.45,2.86]
[1755488668475,4.04394216,182.52,182.45,2.86]
[1755488668772,3.15,182.5,182.4,2.86]
[1755488668970,4.04394216,182.49,182.4,2.86]
[1755488669169,3.15,182.5,182.4,2.86]
[1755488669481,12.67184933,182.49,182.44,2.86]
[1755488669680,8.6267,182.49,182.44,2.86]
[1755488670185,5.4767,182.49,182.44,2.86]
[1755488670382,3.15,182.48,182.44,2.86]
[1755488671375,3.15,182.5,182.45,2.86]
[1755488671679,4.05079033,182.49,182.45,2.86]
[1755488671874,3.15,182.5,182.46,2.86]
[1755488672082,7.19879855,182.49,182.4,2.86]
[1755488672276,3.15,182.49,182.4,2.86]
[1755488672481,5.4768,182.48,182.42,5.4785]
[1755488672782,3.15,182.47,182.43,2.86]
[1755488673883,3.15,182.46,182.44,2.86]
[1755488674776,5.4775,182.46,182.42,2.86]
[1755488674984,5.93888508,182.54,182.44,2.86]
[1755488674985,3.15,182.45,182.44,2.86]
[1755488675173,3.15,182.44,182.41,2.86]
[1755488675373,3.15,182.43,182.41,2.86]
[1755488675573,3.15,182.42,182.41,2.86]
[1755488676681,22.37888508,182.55,182.42,2.86]
[1755488676682,3.15,182.43,182.42,2.86]
[1755488676882,7.20440065,182.43,182.42,2.86]
[1755488677479,7.20745516,182.43,182.42,2.86]
[1755488677987,4.05745516,182.43,182.4,2.86]
[1755488678279,3.15,182.41,182.4,2.86]
[1755488678481,3.15,182.4,182.39,2.86]
[1755488678782,3.15,182.39,182.38,2.86]
[1755488678982,3.15,182.41,182.36,5.4803]
[1755488679175,3.15,182.41,182.39,2.86]
[1755488679375,5.4786,182.42,182.39,2.86]
[1755488679575,3.15,182.4,182.39,2.86]
[1755488679772,8.6286,182.42,182.39,2.86]
[1755488679976,16.44,182.55,182.4,2.86]
[1755488680173,3.15,182.53,182.4,2.86]
[1755488680379,3.15,182.53,182.38,9.57977936]
[1755488680380,3.15,182.51,182.41,2.86]
[1755488680580,5.477,182.48,182.41,2.86]
[1755488680782,7.20843288,182.47,182.41,2.86]
[1755488680976,3.15,182.47,182.43,2.86]
[1755488681486,3.15,182.47,182.43,8.338]
[1755488681685,3.15,182.47,182.44,2.86]
[1755488681985,3.15,182.47,182.44,5.4778]
[1755488682285,3.15,182.49,182.48,2.86]
[1755488682485,7.21149584,182.49,182.46,2.86]
[1755488682682,3.15,182.48,182.46,2.86]
[1755488682888,3.15,182.47,182.46,2.86]
[1755488683088,5.477,182.48,182.4,5.4791]
[1755488683287,3.15,182.46,182.45,2.86]
[1755488684490,368.04,182.58,182.45,2.86]
[1755488684692,3.15,182.49,182.45,2.86]
[1755488684895,5.4774,182.46,182.43,2.86]
[1755488685086,3.15,182.47,182.39,2.86]
[1755488685293,4.05697482,182.46,182.39,2.86]
[1755488685487,3.15,182.42,182.4,2.86]
[1755488685685,3.15,182.42,182.41,2.86]
[1755488686792,3.15,182.44,182.35,2.86]
[1755488687094,3.15,182.47,182.39,2.86]